fUST/lending_fUST_20240128
["ID","MTS","AMOUNT","RATE_DAILY","PERIOD"]
[312904229,1706448642404,-500.0,0.00021917,2]
[312904230,1706448642414,-3837.4,0.00021917,2]
[312904231,1706448642423,-511.32578597,0.00021917,2]
[312904232,1706448642432,-5403.66,0.00021917,2]
[312904233,1706448642442,-96.89597056,0.00021917,2]
[312904241,1706448642568,-403.10402944,0.00021917,2]
[312904242,1706448642577,-500.0,0.00021917,2]
[312904243,1706448642587,-500.0,0.00021917,2]
[312904244,1706448642596,-503.02,0.00021917,2]
[312904245,1706448642605,-1819.97,0.00021917,2]
[312904246,1706448642614,-500.0,0.00021917,2]
[312904247,1706448642622,-500.0,0.00021917,2]
[312904248,1706448642631,-981.65,0.00021917,2]
[312904249,1706448642640,-500.0,0.00021917,2]
[312904250,1706448642649,-152.51532776,0.00021917,2]
[312904251,1706448642658,-1079.66,0.00021917,2]
[312904252,1706448642667,-511.78379089,0.00021917,2]
[312904253,1706448642676,-500.0,0.00021917,2]
[312904254,1706448642685,-1751.14637479,0.00021917,2]
[312904255,1706448642696,-1587.66158615,0.00021917,2]
[312904257,1706448642801,6555.81011955,0.00011993,2]
[312904268,1706448644000,-262.62109468,0.00014999,2]
[312904269,1706448644009,-1294.9059591,0.000217,2]
[312904270,1706448644018,-3447.08519194,0.00021701,3]
[312904271,1706448644030,-2947.15480806,0.00021701,3]
[312904272,1706448644039,-109.84519194,0.00021917,2]
[312904276,1706448645883,-287.482269,0.00013699,2]
[312904277,1706448645893,-4911.80201921,0.000217,2]
[312904278,1706448645903,-20892.43059927,0.000217,2]
[312904279,1706448645912,-342.75204298,0.000217,2]
[312904280,1706448645921,-195.33092763,0.000217,2]
[312904281,1706448645930,-264.94395442,0.000217,2]
[312904282,1706448645939,-81268.82977941,0.00021916,2]
[312904283,1706448645948,-155.00775039,0.00021916,2]
[312904284,1706448645957,-1265.30684712,0.00021917,2]
[312904285,1706448645967,-1428.95,0.00021917,2]
[312904286,1706448645976,-3279.49,0.00021917,2]
[312904287,1706448645985,-500.0,0.00021917,2]
[312904288,1706448645995,-13960.78,0.00021917,2]
[312904289,1706448646005,-500.0,0.00021917,2]
[312904291,1706448646014,-500.0,0.00021917,2]
[312904293,1706448646024,-213.18035084,0.00021917,2]
[312904294,1706448646033,-500.0,0.00021917,2]
[312904295,1706448646042,-500.0,0.00021917,2]
[312904296,1706448646051,-4209.66,0.00021917,2]
[312904297,1706448646060,-776.26,0.00021917,2]
[312904298,1706448646069,-1987.39,0.00021917,2]
[312904299,1706448646078,-1136.5,0.00021917,2]
[312904300,1706448646087,-26731.14,0.00021917,2]
[312904301,1706448646096,-529.15,0.00021917,2]
[312904302,1706448646105,-500.0,0.00021917,2]
[312904303,1706448646114,-500.0,0.00021917,2]
[312904304,1706448646124,-500.0,0.00021917,2]
[312904305,1706448646134,-500.0,0.00021917,2]
[312904306,1706448646143,-500.0,0.00021917,2]
[312904307,1706448646157,-523.38406144,0.00021917,2]
[312904308,1706448646167,-500.0,0.00021917,2]
[312904309,1706448646242,-500.0,0.00021917,2]
[312904310,1706448646252,-560.94941592,0.00021917,2]
[312904311,1706448646261,-1000.0,0.00021917,2]
[312904312,1706448646270,-2079.73255929,0.00021917,2]
[312904314,1706448656641,261.80839934,0.00021915,7]
[312904315,1706448658460,468.82365687,0.00021915,20]
[312904325,1706449038774,261.12239909,0.00020891,7]
[312904326,1706449056735,262.81298472,0.00017331,7]
[312904330,1706449222825,818.6103828,0.000103,2]
[312904332,1706449301551,250.0,0.00010289,2]
[312904333,1706449329886,23569.9445631,0.00010287,2]
[312904334,1706449329915,1330.0554369,0.00010287,2]
[312904335,1706449356738,155.02635448,0.000103,2]
[312904336,1706449358697,1583.8500325,0.00010366,2]
[312904337,1706449368570,155.02635448,0.00010287,2]
[312904339,1706449479430,6013.4651163,0.00010271,2]
[312904341,1706449623781,155.00775039,0.0001022,2]
[312904342,1706449624803,260.71552206,0.00017331,7]
[312904344,1706449632309,621.08630561,0.00010271,2]
[312904346,1706449680272,15014.55566879,0.00016,5]
[312904348,1706449722209,250.0,0.00010161,2]
[312904349,1706449750655,24900.0,0.00010157,2]
[312904350,1706449768773,151.69703361,0.0002,14]
[312904351,1706449807490,1362.08883033,0.00010161,5]
[312904390,1706449831923,-295.19469564,0.00011141,2]
[312904392,1706449831932,-155.00775039,0.00011141,2]
[312904394,1706449831942,-202.65103021,0.00011141,2]
[312904399,1706449831978,-1540.06274953,0.00011141,2]
[312904401,1706449831987,-262.62109468,0.00011142,2]
[312904403,1706449831996,-155.00775039,0.00011142,2]
[312904404,1706449832005,-1146.20081328,0.00011142,2]
[312904406,1706449832015,-15752.39867076,0.00011142,2]
[312904408,1706449832024,-7153.70892136,0.00011142,2]
[312904410,1706449832035,-13738.72167791,0.00011142,2]
[312904411,1706449832044,-199.40706309,0.00011142,2]
[312904413,1706449832054,-155.00775039,0.00011143,2]
[312904415,1706449832063,-171.10726963,0.00011143,2]
[312904416,1706449832073,-213.63828933,0.00011143,2]
[312904418,1706449832082,-1027.23252462,0.00011143,2]
[312904419,1706449832091,-1294.9059591,0.00011143,2]
[312904420,1706449832099,-155.00775039,0.00011143,2]
[312904421,1706449832108,-562.1560078,0.00011143,2]
[312904422,1706449832118,-761.71762625,0.00011144,2]
[312904423,1706449832128,-15634.47127894,0.00011144,2]
[312904424,1706449832137,-261.37401822,0.00011144,2]
[312904425,1706449832147,-3922.3869813,0.00011145,2]
[312904426,1706449832156,-588.93888333,0.00011145,2]
[312904427,1706449832167,-978.95259375,0.00011145,2]
[312904428,1706449832176,-5214.02314025,0.00011145,2]
[312904429,1706449832186,-2003.83335234,0.00011145,2]
[312904430,1706449832197,-302.2469024,0.00011146,2]
[312904431,1706449832207,-620.0257606,0.00011146,2]
[312904432,1706449832217,-5000.0,0.00011146,2]
[312904433,1706449832227,-2817.80173688,0.00011146,2]
[312904434,1706449832236,-155.00775039,0.00011147,2]
[312904435,1706449832245,-2041.12977295,0.00011147,2]
[312904436,1706449832255,-494.81287237,0.00011147,2]
[312904437,1706449832264,-155.00775039,0.00011147,2]
[312904438,1706449832274,-2076.27654373,0.00011148,2]
[312904439,1706449832283,-471.13604267,0.00011148,2]
[312904440,1706449832292,-2105.7958969,0.00011148,2]
[312904441,1706449832302,-160.87713756,0.00011149,2]
[312904442,1706449832312,-32190.12930274,0.0001115,2]
[312904471,1706449837998,-155.00775039,0.0001114,2]
[312904472,1706449838007,-600.97332017,0.0001114,2]
[312904473,1706449838016,-3292.21592249,0.00011149,2]
[312904474,1706449838028,-672.68140241,0.00011149,2]
[312904475,1706449838039,-1072.90918456,0.00011149,2]
[312904476,1706449838055,-15882.12228109,0.00011149,2]
[312904477,1706449838064,-4809.88300279,0.0001115,2]
[312904478,1706449838073,-21913.38978712,0.0001115,2]
[312904479,1706449838085,-59355.43999229,0.0001115,2]
[312904480,1706449838180,-21705.86650889,0.0001115,2]
[312904481,1706449838190,-19884.40674015,0.00011151,2]
[312904482,1706449838200,-18921.17730606,0.00011151,2]
[312904483,1706449838210,-164.932497,0.00011164,2]
[312904484,1706449838220,-284.08566072,0.00011264,2]
[312904485,1706449838229,-309.91431217,0.00011278,2]
[312904486,1706449838238,-200.0,0.0001171,2]
[312904487,1706449838247,-280.0,0.00012881,2]
[312904488,1706449838256,-164.93249697,0.00013589,2]
[312904489,1706449838265,-1251.71797269,0.00013698,2]
[312904490,1706449838274,-1398.939716,0.00013699,2]
[312904491,1706449838283,-8607.3261844,0.00013699,2]
[312904492,1706449838292,-391.0,0.00014169,2]
[312904493,1706449838302,-2726.22991836,0.00015,2]
[312904494,1706449838311,-297.00347325,0.00015,2]
[312904495,1706449838320,-688.68606905,0.00015584,2]
[312904496,1706449838329,-200.0,0.00015585,2]
[312904497,1706449838340,-348.0,0.00015585,2]
[312904498,1706449838350,-164.93249697,0.00016013,2]
[312904499,1706449838360,-2041.45797236,0.00016984,2]
[312904500,1706449838371,-200.0,0.00017144,2]
[312904501,1706449838380,-200.0,0.00017144,2]
[312904502,1706449838389,-368.0,0.00017144,2]
[312904503,1706449838398,-3394.60090585,0.00017158,2]
[312904504,1706449838407,-287.12977384,0.00017244,2]
[312904505,1706449838418,-332.62538014,0.00017329,2]
[312904506,1706449838427,-7966.81883748,0.0001733,2]
[312904507,1706449838436,-166.8863606,0.00017331,2]
[312904508,1706449838446,-306.54562829,0.00017331,2]
[312904509,1706449838455,-157.93943544,0.00017331,2]
[312904510,1706449838464,-303.44835747,0.00017331,2]
[312904511,1706449838473,-156.61472977,0.00017331,2]
[312904512,1706449838482,-1650.91924153,0.00017331,2]
[312904513,1706449838492,-155.14514716,0.00017331,2]
[312904514,1706449838501,-608.61746145,0.00017331,2]
[312904515,1706449838512,-171.95327391,0.00017331,2]
[312904516,1706449838523,-156.21984121,0.00017331,2]
[312904517,1706449838533,-196.97481196,0.00017331,2]
[312904518,1706449838543,-155.02116883,0.00017331,2]
[312904519,1706449838552,-788.87275899,0.00017331,2]
[312904520,1706449838562,-179.40761383,0.00017331,2]
[312904521,1706449838572,-1701.68458093,0.00017331,2]
[312904522,1706449838582,-155.16540482,0.00017331,2]
[312904523,1706449838593,-2929.03323796,0.00017331,2]
[312904524,1706449838604,-155.49597422,0.00017331,2]
[312904525,1706449838615,-155.26019958,0.00017331,2]
[312904526,1706449838625,-194.89526067,0.00017331,2]
[312904527,1706449838635,-175.86052027,0.00017331,2]
[312904528,1706449838645,-157.25655245,0.00017331,2]
[312904529,1706449838657,-155.2565427,0.00017331,2]
[312904530,1706449838667,-208.17176317,0.00017331,2]
[312904531,1706449838676,-166.53940446,0.00017331,2]
[312904532,1706449838687,-209.92711265,0.00017331,2]
[312904533,1706449838695,-189.32811774,0.00017331,2]
[312904534,1706449838704,-529.96178202,0.00017331,2]
[312904535,1706449838714,-155.17453603,0.00017331,2]
[312904536,1706449838723,-500.0,0.00017331,2]
[312904537,1706449838732,-122658.59238475,0.00017331,2]
[312904538,1706449838742,-200.89934999,0.00017332,2]
[312904539,1706449838751,-164.93249697,0.00018438,2]
[312904540,1706449838761,-151.0,0.00018458,2]
[312904541,1706449838770,-200.0,0.00018858,2]
[312904542,1706449838779,-200.0,0.00018858,2]
[312904543,1706449838789,-200.0,0.00018858,2]
[312904544,1706449838798,-200.0,0.00018858,2]
[312904545,1706449838807,-275.0,0.00018858,2]
[312904546,1706449838816,-1584.05603829,0.00019,2]
[312904547,1706449838826,-400.42421234,0.00019178,2]
[312904548,1706449838835,-169.688652,0.00019178,2]
[312904549,1706449838844,-151.0,0.00019584,2]
[312904550,1706449838853,-303.81437787,0.000197,2]
[312904551,1706449838862,-823.2846827,0.00019817,2]
[312904552,1706449838872,-679.47851073,0.0002,2]
[312904553,1706449838881,-244.23818961,0.0002,2]
[312904554,1706449838890,-155.00930056,0.0002,2]
[312904555,1706449838900,-155.00930056,0.0002,2]
[312904556,1706449838909,-155.00930056,0.0002,2]
[312904557,1706449838919,-1199.39136189,0.0002,2]
[312904558,1706449838928,-155.02325349,0.0002,2]
[312904559,1706449838938,-1289.67593275,0.0002,2]
[312904560,1706449838948,-1110.30133816,0.0002,2]
[312904561,1706449838957,-400.70447563,0.0002,2]
[312904562,1706449838966,-548.49851993,0.0002,2]
[312904563,1706449838975,-155.00775039,0.0002,2]
[312904564,1706449838984,-1398.939716,0.00020548,2]
[312904565,1706449838994,-151.0,0.0002071,2]
[312904566,1706449839003,-200.0,0.00020744,2]
[312904567,1706449839012,-200.0,0.00020744,2]
[312904568,1706449839021,-200.0,0.00020744,2]
[312904569,1706449839031,-200.0,0.00020744,2]
[312904570,1706449839040,-200.0,0.00020744,2]
[312904571,1706449839049,-200.0,0.00020744,2]
[312904572,1706449839059,-305.0,0.00020744,2]
[312904573,1706449839068,-164.93249697,0.00020862,2]
[312904574,1706449839077,-213842.81145848,0.00020893,2]
[312904575,1706449839086,-154.777918,0.00020893,2]
[312904576,1706449839095,-10000.0,0.00020893,2]
[312904577,1706449839104,-10000.0,0.00020893,2]
[312904578,1706449839114,-1939.014502,0.00020893,2]
[312904579,1706449839124,-967.771143,0.00020893,2]
[312904580,1706449839133,-967.771143,0.00020893,2]
[312904581,1706449839143,-257.94319417,0.000217,2]
[312904582,1706449839153,-1242.37869698,0.000217,2]
[312904583,1706449839164,-155.50009392,0.000217,2]
[312904584,1706449839173,-354.0934159,0.000217,2]
[312904585,1706449839182,-500.0,0.00021808,2]
[312904586,1706449839190,-500.0,0.00021808,2]
[312904587,1706449839199,-500.0,0.00021808,2]
[312904588,1706449839210,-500.0,0.00021808,2]
[312904589,1706449839220,-500.0,0.00021808,2]
[312904590,1706449839229,-500.0,0.00021808,2]
[312904591,1706449839238,-500.0,0.00021808,2]
[312904592,1706449839247,-337.70440343,0.00021808,2]
[312904593,1706449839256,-500.0,0.00021808,2]
[312904594,1706449839266,-500.0,0.00021808,2]
[312904595,1706449839275,-647.02207258,0.00021808,2]
[312904596,1706449839285,-500.0,0.00021808,2]
[312904597,1706449839293,-634.03071431,0.00021808,2]
[312904598,1706449839302,-500.0,0.00021808,2]
[312904599,1706449839311,-156.35796755,0.00021808,2]
[312904600,1706449839321,-425.31454102,0.00021808,2]
[312904601,1706449839330,-500.0,0.00021808,2]
[312904602,1706449839339,-500.0,0.00021808,2]
[312904603,1706449839348,-500.0,0.00021808,2]
[312904604,1706449839357,-500.0,0.00021808,2]
[312904605,1706449839366,-450.11338084,0.00021808,2]
[312904606,1706449839375,-164.27609953,0.00021808,2]
[312904607,1706449839384,-500.0,0.00021808,2]
[312904608,1706449839393,-500.0,0.00021808,2]
[312904609,1706449839402,-500.0,0.00021808,2]
[312904611,1706449839412,-500.0,0.00021808,2]
[312904613,1706449839421,-500.0,0.00021808,2]
[312904614,1706449839430,-500.0,0.00021808,2]
[312904615,1706449839439,-500.0,0.00021808,2]
[312904616,1706449839448,-500.0,0.00021808,2]
[312904617,1706449839458,-500.0,0.00021808,2]
[312904618,1706449839467,-500.0,0.00021808,2]
[312904619,1706449839477,-500.0,0.00021808,2]
[312904620,1706449839486,-500.0,0.00021808,2]
[312904621,1706449839495,-447.53970492,0.00021808,2]
[312904622,1706449839504,-500.0,0.00021808,2]
[312904623,1706449839514,-500.0,0.00021808,2]
[312904624,1706449839528,-500.0,0.00021808,2]
[312904625,1706449839537,-500.0,0.00021808,2]
[312904626,1706449839546,-500.0,0.00021808,2]
[312904627,1706449839556,-500.0,0.00021808,2]
[312904628,1706449839566,-500.0,0.00021808,2]
[312904629,1706449839576,-500.0,0.00021808,2]
[312904630,1706449839650,-500.0,0.00021808,2]
[312904631,1706449839660,-500.0,0.00021808,2]
[312904632,1706449839669,-500.0,0.00021808,2]
[312904633,1706449839678,-5000.0,0.00021811,2]
[312904634,1706449839687,-5000.0,0.00021811,2]
[312904635,1706449839696,-2511.85507359,0.00021811,2]
[312904636,1706449839705,-5000.0,0.00021811,2]
[312904637,1706449839714,-5000.0,0.00021811,2]
[312904638,1706449839724,-5000.0,0.00021811,2]
[312904639,1706449839733,-5000.0,0.00021811,2]
[312904640,1706449839742,-5000.0,0.00021811,2]
[312904641,1706449839751,-5000.0,0.00021811,2]
[312904642,1706449839760,-5000.0,0.00021811,2]
[312904643,1706449839769,-5000.0,0.00021811,2]
[312904644,1706449839778,-5000.0,0.00021811,2]
[312904645,1706449839788,-5000.0,0.00021811,2]
[312904646,1706449839796,-5000.0,0.00021811,2]
[312904647,1706449839806,-5000.0,0.00021811,2]
[312904648,1706449839815,-151.0,0.00021811,2]
[312904649,1706449839824,-5000.0,0.00021811,2]
[312904650,1706449839833,-5000.0,0.00021811,2]
[312904651,1706449839842,-5000.0,0.00021811,2]
[312904652,1706449839851,-5000.0,0.00021811,2]
[312904653,1706449839860,-151.0,0.00021811,2]
[312904654,1706449839869,-17777.74286091,0.00021811,2]
[312904655,1706449839879,-5000.0,0.00021811,2]
[312904656,1706449839889,-5000.0,0.00021811,2]
[312904657,1706449839898,-5000.0,0.00021811,2]
[312904658,1706449839907,-5000.0,0.00021811,2]
[312904659,1706449839916,-5000.0,0.00021811,2]
[312904660,1706449839926,-5000.0,0.00021811,2]
[312904661,1706449839935,-5000.0,0.00021811,2]
[312904663,1706449839944,-5000.0,0.00021811,2]
[312904665,1706449839953,-5000.0,0.00021811,2]
[312904666,1706449839962,-5000.0,0.00021811,2]
[312904667,1706449839971,-151.0,0.00021811,2]
[312904668,1706449839980,-5000.0,0.00021811,2]
[312904669,1706449839990,-5000.0,0.00021811,2]
[312904670,1706449839999,-5000.0,0.00021811,2]
[312904671,1706449840008,-5000.0,0.00021811,2]
[312904672,1706449840017,-247.185849,0.00021811,2]
[312904673,1706449840026,-247.185849,0.00021811,2]
[312904674,1706449840035,-5000.0,0.00021811,2]
[312904675,1706449840044,-5000.0,0.00021811,2]
[312904677,1706449840053,-5000.0,0.00021811,2]
[312904679,1706449840062,-5000.0,0.00021811,2]
[312904681,1706449840071,-5299.26453718,0.00021811,2]
[312904682,1706449840080,-3699.519471,0.00021811,2]
[312904683,1706449840089,-3699.519471,0.00021811,2]
[312904684,1706449840098,-3699.519471,0.00021811,2]
[312904685,1706449840107,-3699.519471,0.00021811,2]
[312904686,1706449840116,-151.0,0.00021811,2]
[312904687,1706449840126,-151.0,0.00021811,2]
[312904688,1706449840135,-10000.0,0.00021811,2]
[312904689,1706449840144,-10000.0,0.00021811,2]
[312904690,1706449840153,-10000.0,0.00021811,2]
[312904692,1706449840163,-10000.0,0.00021811,2]
[312904694,1706449840172,-10000.0,0.00021811,2]
[312904695,1706449840181,-10000.0,0.00021811,2]
[312904696,1706449840190,-5000.0,0.00021811,2]
[312904697,1706449840199,-967.771143,0.00021811,2]
[312904698,1706449840208,-967.771143,0.00021811,2]
[312904699,1706449840218,-967.771143,0.00021811,2]
[312904700,1706449840227,-967.771143,0.00021811,2]
[312904701,1706449840235,-967.771143,0.00021811,2]
[312904702,1706449840244,-967.771143,0.00021811,2]
[312904703,1706449840254,-967.771143,0.00021811,2]
[312904704,1706449840263,-967.771143,0.00021811,2]
[312904705,1706449840272,-1376.49457106,0.00021817,2]
[312904706,1706449840280,-151.0,0.00021836,2]
[312904707,1706449840289,-500.0,0.00021913,2]
[312904708,1706449840299,-500.0,0.00021913,2]
[312904709,1706449840307,-586.9872074,0.00021913,2]
[312904710,1706449840316,-415.76505033,0.00021913,2]
[312904711,1706449840325,-298.48147438,0.00021913,2]
[312904712,1706449840334,-160.99225998,0.00021913,2]
[312904713,1706449840343,-500.0,0.00021913,2]
[312904714,1706449840352,-500.0,0.00021913,2]
[312904715,1706449840361,-500.0,0.00021913,2]
[312904716,1706449840371,-500.0,0.00021913,2]
[312904717,1706449840380,-500.0,0.00021913,2]
[312904718,1706449840389,-193.66564597,0.00021913,2]
[312904719,1706449840398,-481.11357031,0.00021913,2]
[312904720,1706449840407,-68027.9095828,0.00021914,2]
[312904721,1706449840416,-301.999999,0.00021914,2]
[312904722,1706449840425,-151.0,0.00021914,2]
[312904723,1706449840434,-247.185849,0.00021914,2]
[312904724,1706449840443,-247.185849,0.00021914,2]
[312904725,1706449840452,-3699.519471,0.00021914,2]
[312904726,1706449840461,-3699.519471,0.00021914,2]
[312904727,1706449840470,-151.0,0.00021914,2]
[312904728,1706449840479,-10000.0,0.00021914,2]
[312904729,1706449840487,-10000.0,0.00021914,2]
[312904730,1706449840497,-967.771143,0.00021914,2]
[312904731,1706449840506,-967.771143,0.00021914,2]
[312904732,1706449840515,-156.29332172,0.00021915,2]
[312904733,1706449840529,-1271.34585799,0.00021915,2]
[312904734,1706449840539,-628.64858801,0.00021915,2]
[312904736,1706449840549,-1828.0659992,0.00021915,2]
[312904738,1706449840559,-2086.73700022,0.00021915,2]
[312904739,1706449840568,-151.0,0.00021915,2]
[312904741,1706449840578,-151.0,0.00021915,2]
[312904743,1706449840588,-1444.60663607,0.00021916,2]
[312904744,1706449840597,-242.60975901,0.00021916,2]
[312904745,1706449840607,-161.92569869,0.00021916,2]
[312904746,1706449840618,-176.39606703,0.00021916,2]
[312904747,1706449840627,-595.45090393,0.00021916,2]
[312904748,1706449840637,-611.48045657,0.00021917,2]
[312904749,1706449840646,-500.0,0.00021917,2]
[312904750,1706449840656,-500.0,0.00021917,2]
[312904751,1706449840667,-500.0,0.00021917,2]
[312904752,1706449840676,-395.45045094,0.00021917,2]
[312904753,1706449840687,-500.0,0.00021917,2]
[312904754,1706449840697,-500.0,0.00021917,2]
[312904755,1706449840706,-860.23,0.00021917,2]
[312904756,1706449840715,-500.0,0.00021917,2]
[312904757,1706449840725,-500.0,0.00021917,2]
[312904758,1706449840734,-151.0,0.00021917,2]
[312904759,1706449840744,-500.0,0.00021917,2]
[312904760,1706449840753,-460.35165477,0.00021917,2]
[312904761,1706449840762,-217.14462358,0.00021917,2]
[312904762,1706449840772,-500.0,0.00021917,2]
[312904763,1706449840781,-500.0,0.00021917,2]
[312904764,1706449840790,-527.14,0.00021917,2]
[312904765,1706449840799,-500.0,0.00021917,2]
[312904766,1706449840808,-1390.76,0.00021917,2]
[312904767,1706449840819,-500.0,0.00021917,2]
[312904768,1706449840828,-270.96680179,0.00021917,2]
[312904769,1706449840838,-500.0,0.00021917,2]
[312904770,1706449840847,-906.05,0.00021917,2]
[312904771,1706449840857,-500.0,0.00021917,2]
[312904772,1706449840866,-500.0,0.00021917,2]
[312904773,1706449840876,-500.0,0.00021917,2]
[312904774,1706449840885,-156.42516188,0.00021917,2]
[312904775,1706449840894,-151.0,0.00021917,2]
[312904776,1706449840904,-250.575014,0.00021917,2]
[312904778,1706449840913,-500.0,0.00021917,2]
[312904782,1706449840983,-1768.69,0.00021917,2]
[312904784,1706449840993,-500.0,0.00021917,2]
[312904785,1706449841003,-500.0,0.00021917,2]
[312904786,1706449841013,-500.0,0.00021917,2]
[312904787,1706449841023,-500.0,0.00021917,2]
[312904788,1706449841034,-500.0,0.00021917,2]
[312904789,1706449841044,-500.0,0.00021917,2]
[312904790,1706449841053,-2156.52,0.00021917,2]
[312904791,1706449841062,-500.0,0.00021917,2]
[312904792,1706449841072,-500.0,0.00021917,2]
[312904793,1706449841081,-5529.41,0.00021917,2]
[312904794,1706449841089,-1757.48,0.00021917,2]
[312904795,1706449841098,-500.0,0.00021917,2]
[312904796,1706449841107,-500.0,0.00021917,2]
[312904797,1706449841116,-500.0,0.00021917,2]
[312904798,1706449841126,-500.0,0.00021917,2]
[312904799,1706449841135,-500.0,0.00021917,2]
[312904800,1706449841144,-511.32578597,0.00021917,2]
[312904801,1706449841153,-1181.84,0.00021917,2]
[312904802,1706449841163,-1161.91,0.00021917,2]
[312904803,1706449841171,-557.08,0.00021917,2]
[312904804,1706449841180,-500.0,0.00021917,2]
[312904805,1706449841189,-500.0,0.00021917,2]
[312904806,1706449841198,-500.0,0.00021917,2]
[312904807,1706449841207,-500.0,0.00021917,2]
[312904808,1706449841217,-560.74,0.00021917,2]
[312904809,1706449841227,-500.0,0.00021917,2]
[312904810,1706449841237,-500.0,0.00021917,2]
[312904811,1706449841246,-500.0,0.00021917,2]
[312904812,1706449841255,-500.0,0.00021917,2]
[312904813,1706449841264,-152.51532776,0.00021917,2]
[312904814,1706449841273,-500.0,0.00021917,2]
[312904815,1706449841282,-595.27101256,0.00021917,2]
[312904816,1706449841291,-1369.41,0.00021917,2]
[312904817,1706449841300,-270.49445318,0.00021917,2]
[312904818,1706449841309,-500.0,0.00021917,2]
[312904819,1706449841319,-500.0,0.00021917,2]
[312904820,1706449841328,-500.0,0.00021917,2]
[312904821,1706449841337,-500.0,0.00021917,2]
[312904822,1706449841346,-500.0,0.00021917,2]
[312904823,1706449841355,-1904.58,0.00021917,2]
[312904824,1706449841364,-1079.66,0.00021917,2]
[312904825,1706449841374,-440.63457018,0.00021917,2]
[312904826,1706449841383,-500.0,0.00021917,2]
[312904827,1706449841392,-500.0,0.00021917,2]
[312904828,1706449841401,-500.0,0.00021917,2]
[312904829,1706449841410,-193.33149398,0.00021917,2]
[312904830,1706449841419,-500.0,0.00021917,2]
[312904831,1706449841428,-2618.59,0.00021917,2]
[312904832,1706449841437,-500.0,0.00021917,2]
[312904833,1706449841446,-500.0,0.00021917,2]
[312904834,1706449841455,-476.67319883,0.00021917,2]
[312904835,1706449841464,-500.0,0.00021917,2]
[312904836,1706449841473,-500.0,0.00021917,2]
[312904837,1706449841482,-508.20795299,0.00021917,2]
[312904838,1706449841491,-508.85286137,0.00021917,2]
[312904839,1706449841500,-500.0,0.00021917,2]
[312904840,1706449841510,-500.0,0.00021917,2]
[312904841,1706449841521,-500.0,0.00021917,2]
[312904842,1706449841530,-500.0,0.00021917,2]
[312904843,1706449841539,-500.0,0.00021917,2]
[312904844,1706449841548,-500.0,0.00021917,2]
[312904845,1706449841558,-500.0,0.00021917,2]
[312904846,1706449841569,-500.0,0.00021917,2]
[312904847,1706449841585,-591.48875896,0.00021917,2]
[312904848,1706449841605,-1828.36,0.00021917,2]
[312904849,1706449841616,-500.0,0.00021917,2]
[312904850,1706449841632,-500.0,0.00021917,2]
[312904851,1706449841647,-500.0,0.00021917,2]
[312904852,1706449841662,-500.0,0.00021917,2]
[312904853,1706449841675,-500.0,0.00021917,2]
[312904854,1706449841689,-500.0,0.00021917,2]
[312904855,1706449841702,-200.72682926,0.00021917,2]
[312904856,1706449841716,-915.71,0.00021917,2]
[312904857,1706449841731,-500.0,0.00021917,2]
[312904858,1706449841743,-500.0,0.00021917,2]
[312904859,1706449841758,-819.23,0.00021917,2]
[312904860,1706449841771,-1781.92,0.00021917,2]
[312904861,1706449841785,-500.0,0.00021917,2]
[312904862,1706449841799,-500.0,0.00021917,2]
[312904863,1706449841813,-1024.81,0.00021917,2]
[312904864,1706449841828,-500.0,0.00021917,2]
[312904865,1706449841845,-152.035045,0.00021917,2]
[312904866,1706449841859,-500.0,0.00021917,2]
[312904867,1706449841870,-500.0,0.00021917,2]
[312904868,1706449841882,-500.0,0.00021917,2]